fUST/lending_fUST_20250531
["ID","MTS","AMOUNT","RATE_DAILY","PERIOD"]
[363296455,1748661045206,-430.0,0.00016772,2]
[363296456,1748661045222,-430.0,0.00017046,2]
[363296457,1748661045234,-430.0,0.0001732,2]
[363296458,1748661045247,-126.78427553,0.00021608,2]
[363296459,1748661045259,-906.30333814,0.00021608,2]
[363296460,1748661045275,-593.69666186,0.00021608,2]
[363296461,1748661045288,-1000.0,0.0002162,5]
[363296462,1748661045301,-1000.0,0.0002164,5]
[363296463,1748661045314,-430.0,0.00021642,2]
[363296464,1748661045328,-1000.0,0.0002166,5]
[363296466,1748661045341,-932.36437744,0.00021663,2]
[363296467,1748661045362,-591.78506564,0.00021663,2]
[363296468,1748661045373,-378.95493446,0.00021666,2]
[363296470,1748661045388,-847.50656881,0.00021666,2]
[363296471,1748661045402,-634.0,0.00021666,2]
[363296472,1748661045416,-300.0,0.00021666,2]
[363296473,1748661045431,-377.0600867,0.00021666,2]
[363296501,1748661046892,-125.18899576,0.00016498,2]
[363296502,1748661046969,-285.90652714,0.00016498,2]
[363296503,1748661046981,-430.0,0.0001671,2]
[363296504,1748661046992,-430.0,0.00017594,2]
[363296505,1748661047002,-282.16,0.00017868,2]
[363296506,1748661047013,-170.66524464,0.00018924,2]
[363296507,1748661047023,-242.041,0.00019922,2]
[363296508,1748661047033,-405.0,0.00019922,2]
[363296509,1748661047042,-176.4540852,0.00020356,2]
[363296510,1748661047052,-572.2963003,0.00020356,2]
[363296511,1748661047062,-445.11565794,0.00021118,2]
[363296513,1748661577468,-2337.2355291,0.00016053,2]
[363296514,1748661577489,-160.0,0.00016496,2]
[363296515,1748661577511,-300.0,0.00016497,2]
[363296516,1748661577531,-300.0,0.00016497,2]
[363296517,1748661577554,-430.0,0.00016498,2]
[363296518,1748661577575,-430.0,0.00016498,2]
[363296519,1748661577597,-430.0,0.00016498,2]
[363296520,1748661577618,-430.0,0.00016498,2]
[363296521,1748661577639,-430.0,0.00016498,2]
[363296522,1748661577661,-430.0,0.00016498,2]
[363296523,1748661577682,-430.0,0.00016498,2]
[363296524,1748661577702,-430.0,0.00016498,2]
[363296525,1748661577723,-430.0,0.00016498,2]
[363296526,1748661577746,-430.0,0.00016498,2]
[363296527,1748661577768,-430.0,0.00016498,2]
[363296528,1748661577789,-430.0,0.00016498,2]
[363296529,1748661577815,-430.0,0.00016498,2]
[363296530,1748661577844,-430.0,0.00016498,2]
[363296531,1748661577871,-713.49,0.00016498,2]
[363296532,1748661577900,-430.0,0.00016498,2]
[363296533,1748661577923,-274.90808978,0.00016499,2]
[363296534,1748661577946,-437.08163645,0.00016499,2]
[363296535,1748661577969,-5192.1457003,0.0001653,2]
[363296536,1748661577990,-430.0,0.00016671,2]
[363296537,1748661578013,-430.0,0.00016671,2]
[363296538,1748661578034,-315.40271961,0.00016671,2]
[363296539,1748661578056,-430.0,0.00016671,2]
[363296540,1748661578078,-430.0,0.0001671,2]
[363296541,1748661578102,-430.0,0.0001671,2]
[363296542,1748661578125,-430.0,0.0001671,2]
[363296543,1748661578149,-430.0,0.0001671,2]
[363296544,1748661578173,-430.0,0.0001671,2]
[363296545,1748661578196,-430.0,0.0001671,2]
[363296546,1748661578218,-430.0,0.0001671,2]
[363296547,1748661578241,-430.0,0.00016772,2]
[363296548,1748661578264,-430.0,0.00016772,2]
[363296549,1748661578287,-430.0,0.00016772,2]
[363296550,1748661578308,-430.0,0.00016772,2]
[363296551,1748661578331,-430.0,0.00016772,2]
[363296552,1748661578354,-430.0,0.00016772,2]
[363296553,1748661578377,-430.0,0.00016772,2]
[363296554,1748661578403,-430.0,0.00016772,2]
[363296555,1748661578426,-713.49,0.00016772,2]
[363296556,1748661578453,-430.0,0.00016772,2]
[363296557,1748661578477,-176.64499116,0.00016945,2]
[363296558,1748661578504,-430.0,0.00016983,2]
[363296559,1748661578527,-430.0,0.00016983,2]
[363296560,1748661578550,-441.56699266,0.00016983,2]
[363296561,1748661578571,-440.88563036,0.00016983,2]
[363296562,1748661578595,-499.92,0.00016983,2]
[363296563,1748661578617,-430.0,0.00016983,2]
[363296564,1748661578645,-505.16,0.00016983,2]
[363296565,1748661578666,-474.83,0.00016983,2]
[363296566,1748661578690,-430.0,0.00016983,2]
[363296567,1748661578712,-430.0,0.00016984,2]
[363296568,1748661578734,-430.0,0.00016984,2]
[363296569,1748661578756,-430.0,0.00017046,2]
[363296570,1748661578778,-430.0,0.00017046,2]
[363296571,1748661578801,-430.0,0.00017046,2]
[363296572,1748661578825,-430.0,0.00017046,2]
[363296573,1748661578847,-430.0,0.00017046,2]
[363296574,1748661578869,-533.19,0.00017046,2]
[363296575,1748661578902,-713.49,0.00017046,2]
[363296576,1748661578925,-430.0,0.00017046,2]
[363296577,1748661578948,-499.92,0.00017257,2]
[363296578,1748661578971,-430.0,0.00017257,2]
[363296579,1748661578993,-505.16,0.00017257,2]
[363296580,1748661579016,-474.83,0.00017257,2]
[363296581,1748661579040,-430.0,0.00017257,2]
[363296582,1748661579061,-430.0,0.00017258,2]
[363296583,1748661579083,-430.0,0.00017258,2]
[363296584,1748661579104,-430.0,0.0001732,2]
[363296585,1748661579127,-430.0,0.0001732,2]
[363296586,1748661579151,-430.0,0.0001732,2]
[363296587,1748661579174,-430.0,0.0001732,2]
[363296588,1748661579197,-430.0,0.0001732,2]
[363296589,1748661579220,-713.49,0.0001732,2]
[363296590,1748661579244,-430.0,0.0001732,2]
[363296591,1748661579268,-499.92,0.00017531,2]
[363296592,1748661579291,-430.0,0.00017531,2]
[363296593,1748661579314,-505.16,0.00017531,2]
[363296594,1748661579337,-474.83,0.00017531,2]
[363296595,1748661579361,-183.24871058,0.00017531,2]
[363296596,1748661810516,10000.0,0.000141,2]
[363296597,1748661818245,10000.0,0.000141,2]
[363296598,1748661825252,10000.0,0.000141,2]
[363296599,1748661858198,160.746743,0.00013699,2]
[363296601,1748661943130,-430.0,0.00016498,2]
[363296602,1748661943153,-430.0,0.00016498,2]
[363296603,1748661943175,-594.58,0.00016498,2]
[363296604,1748661943198,-430.0,0.00016498,2]
[363296605,1748661943503,-300.0,0.00016708,2]
[363296606,1748661943533,-300.0,0.00016708,2]
[363296607,1748661943555,-261.0921911,0.00016709,2]
[363296608,1748662025148,-159.09234106,0.00016708,2]
[363296609,1748662032090,-152.54939426,0.00016498,2]
[363296610,1748662037237,-277.45060574,0.00016498,2]
[363296611,1748662037259,-140.90765894,0.00016708,2]
[363296612,1748662037282,-430.0,0.00016709,2]
[363296613,1748662037304,-430.0,0.00016709,2]
[363296614,1748662037328,-430.0,0.00016709,2]
[363296615,1748662037350,-430.0,0.00016709,2]
[363296616,1748662037372,-430.0,0.00016709,2]
[363296617,1748662037394,-389.1,0.00016709,2]
[363296618,1748662037416,-430.0,0.00016709,2]
[363296619,1748662037437,-430.0,0.00016709,2]
[363296620,1748662037459,-430.0,0.00016709,2]
[363296621,1748662037482,-557.11802877,0.00016772,2]
[363296622,1748662037505,-430.0,0.00016772,2]
[363296623,1748662037534,-430.0,0.00016983,2]
[363296624,1748662037559,-430.0,0.00016983,2]
[363296625,1748662037582,-430.0,0.00016983,2]
[363296626,1748662037605,-430.0,0.00016983,2]
[363296627,1748662037627,-430.0,0.00016983,2]
[363296628,1748662037650,-210.78,0.00016983,2]
[363296629,1748662037673,-430.0,0.00016983,2]
[363296630,1748662037695,-430.0,0.00016983,2]
[363296631,1748662037719,-430.0,0.00016983,2]
[363296632,1748662037741,-430.0,0.00017046,2]
[363296633,1748662037763,-430.0,0.00017256,2]
[363296634,1748662037787,-437.43,0.00017256,2]
[363296635,1748662037810,-442.01,0.00017256,2]
[363296636,1748662037832,-430.0,0.00017256,2]
[363296637,1748662037856,-419.7517187,0.00017257,2]
[363296638,1748662037881,-430.0,0.00017257,2]
[363296639,1748662037904,-239.64437473,0.00017257,2]
[363296643,1748662047103,-190.35562527,0.00017257,2]
[363296644,1748662047128,-20.6801709,0.00017257,2]
[363296654,1748662150094,-430.0,0.00016709,2]
[363296655,1748662150118,-430.0,0.00016983,2]
[363296656,1748662150146,-430.0,0.00016983,2]
[363296657,1748662150168,-430.0,0.00016983,2]
[363296658,1748662150190,-430.0,0.00017256,2]
[363296659,1748662150213,-430.0,0.00017256,2]
[363296660,1748662150236,-430.0,0.00017256,2]
[363296661,1748662150259,-300.0,0.00017256,2]
[363296662,1748662150282,-430.0,0.00017257,2]
[363296663,1748662150304,-425.77,0.00017257,2]
[363296664,1748662150326,-430.0,0.00017257,2]
[363296665,1748662150349,-430.0,0.00017257,2]
[363296666,1748662150371,-430.0,0.0001732,2]
[363296667,1748662150395,-430.0,0.0001753,2]
[363296668,1748662150418,-437.43,0.0001753,2]
[363296669,1748662150444,-442.01,0.0001753,2]
[363296670,1748662150466,-430.0,0.0001753,2]
[363296671,1748662150488,-430.0,0.0001753,2]
[363296672,1748662150511,-430.0,0.0001753,2]
[363296673,1748662150534,-430.0,0.0001753,2]
[363296674,1748662150557,-430.0,0.00017531,2]
[363296675,1748662150579,-462.2,0.00017531,2]
[363296676,1748662150600,-535.98658235,0.00017531,2]
[363296677,1748662150621,-430.0,0.00017594,2]
[363296678,1748662150643,-206.17626019,0.000176,2]
[363296679,1748662150665,-430.0,0.00017804,2]
[363296680,1748662150687,-437.43,0.00017804,2]
[363296681,1748662150709,-442.01,0.00017804,2]
[363296682,1748662150731,-430.0,0.00017804,2]
[363296683,1748662150753,-430.0,0.00017804,2]
[363296684,1748662150776,-430.0,0.00017804,2]
[363296685,1748662150799,-430.0,0.00017804,2]
[363296686,1748662150822,-430.0,0.00017805,2]
[363296687,1748662150843,-501.34831125,0.00017825,2]
[363296688,1748662150866,-114.82103407,0.00017868,2]
[363296715,1748662232052,-153.022984,0.00016975,2]
[363296716,1748662232062,-430.0,0.00016983,2]
[363296717,1748662232072,-430.0,0.00016983,2]
[363296718,1748662232082,-185.73987,0.00017089,2]
[363296719,1748662232091,-1186.89090612,0.00017174,2]
[363296720,1748662232101,-208.769907,0.00017175,2]
[363296721,1748662232111,-489.06049956,0.00017234,2]
[363296722,1748662232121,-430.0,0.00017257,2]
[363296723,1748662232131,-430.0,0.00017257,2]
[363296724,1748662232140,-430.0,0.0001753,2]
[363296725,1748662232149,-430.0,0.0001753,2]
[363296726,1748662232158,-430.0,0.00017531,2]
[363296727,1748662232167,-430.0,0.00017531,2]
[363296728,1748662232177,-430.0,0.00017804,2]
[363296729,1748662232186,-403.08515721,0.00017804,2]
[363296730,1748662232195,-64.86979257,0.00017805,2]
[363296746,1748662237924,-365.13020743,0.00017805,2]
[363296749,1748662237934,-430.0,0.00017805,2]
[363296751,1748662237944,-315.17896593,0.00017868,2]
[363296753,1748662237953,-382.56540651,0.00017989,2]
[363296755,1748662237964,-300.0,0.00018077,2]
[363296757,1748662237974,-430.0,0.00018078,2]
[363296759,1748662237983,-430.0,0.00018078,2]
[363296760,1748662237992,-430.0,0.00018078,2]
[363296763,1748662238002,-430.0,0.00018078,2]
[363296764,1748662238011,-430.0,0.00018078,2]
[363296766,1748662238021,-430.0,0.00018079,2]
[363296769,1748662238033,-567.64,0.00018079,2]
[363296771,1748662238043,-430.0,0.00018079,2]
[363296772,1748662238052,-569.8,0.00018141,2]
[363296775,1748662238062,-338.38,0.00018142,2]
[363296776,1748662238071,-800.0,0.00018164,2]
[363296778,1748662238081,-420.0,0.00018254,2]
[363296780,1748662238090,-500.0,0.0001832,2]
[363296784,1748662238100,-1000.0,0.0001832,2]
[363296787,1748662238111,-430.0,0.00018352,2]
[363296790,1748662238120,-430.0,0.00018352,2]
[363296792,1748662238130,-430.0,0.00018352,2]
[363296794,1748662238140,-430.0,0.00018352,2]
[363296797,1748662238150,-430.0,0.00018352,2]
[363296798,1748662238159,-430.0,0.00018353,2]
[363296800,1748662238169,-430.0,0.00018353,2]
[363296803,1748662238182,-170.66524464,0.00018403,2]
[363296805,1748662238192,-569.8,0.00018415,2]
[363296807,1748662238201,-160.0,0.00018468,2]
[363296809,1748662238213,-423.4608169,0.00018484,2]
[363296811,1748662238223,-842.5625,0.00018484,2]
[363296813,1748662238232,-160.0,0.00018484,2]
[363296815,1748662238242,-229.3428821,0.00018484,2]
[363296817,1748662238251,-160.0,0.00018484,2]
[363296819,1748662238260,-212.77096907,0.00018484,2]
[363296821,1748662238270,-12664.98044988,0.00018484,2]
[363296823,1748662238279,-160.0,0.00018503,2]
[363296825,1748662238288,-160.0,0.00018503,2]
[363296827,1748662238298,-430.0,0.00018626,2]
[363296829,1748662238308,-430.0,0.00018626,2]
[363296831,1748662238318,-430.0,0.00018626,2]
[363296833,1748662238328,-430.0,0.00018626,2]
[363296835,1748662238337,-430.0,0.00018626,2]
[363296837,1748662238346,-430.0,0.00018627,2]
[363296839,1748662238355,-430.0,0.00018627,2]
[363296841,1748662238365,-569.8,0.00018689,2]
[363296843,1748662238374,-1000.0,0.00018868,2]
[363296845,1748662238383,-2000.0,0.00018868,2]
[363296847,1748662238393,-430.0,0.000189,2]
[363296849,1748662238403,-430.0,0.000189,2]
[363296851,1748662238413,-430.0,0.000189,2]
[363296852,1748662238423,-430.0,0.000189,2]
[363296853,1748662238432,-3848.17727157,0.000189,2]
[363296854,1748662238443,-430.0,0.000189,2]
[363296855,1748662238452,-430.0,0.00018901,2]
[363296856,1748662238463,-430.0,0.00018901,2]
[363296857,1748662238473,-569.8,0.00018963,2]
[363296858,1748662238482,-6205.64125958,0.00019171,2]
[363296859,1748662238495,-1174.95282108,0.00019171,2]
[363296908,1748662240314,-430.0,0.0001753,2]
[363296910,1748662240324,-430.0,0.00017804,2]
[363296912,1748662240335,-430.0,0.00018078,2]
[363296914,1748662240345,-430.0,0.00018352,2]
[363296916,1748662240355,-430.0,0.00018626,2]
[363296918,1748662240364,-430.0,0.000189,2]
[363296920,1748662240373,-21691.5010852,0.00019171,2]
[363296922,1748662240382,-430.0,0.00019174,2]
[363296924,1748662240392,-430.0,0.00019174,2]
[363296926,1748662240402,-430.0,0.00019174,2]
[363296928,1748662240411,-430.0,0.00019174,2]
[363296930,1748662240420,-430.0,0.00019174,2]
[363296932,1748662240429,-430.0,0.00019174,2]
[363296934,1748662240438,-430.0,0.00019175,2]
[363296957,1748662240639,-430.0,0.00019175,2]
[363296959,1748662240648,-362.861345,0.00019178,2]
[363296961,1748662240657,-1740.06,0.000192,2]
[363296963,1748662240667,-569.8,0.00019237,2]
[363296965,1748662240676,-800.0,0.0001926,2]
[363296967,1748662240685,-1500.0,0.00019416,2]
[363296969,1748662240694,-3000.0,0.00019416,2]
[363296971,1748662240703,-430.0,0.00019448,2]
[363296973,1748662240714,-430.0,0.00019448,2]
[363296975,1748662240723,-430.0,0.00019448,2]
[363296977,1748662240732,-430.0,0.00019448,2]
[363296979,1748662240741,-430.0,0.00019448,2]
[363296981,1748662240752,-430.0,0.00019448,2]
[363296983,1748662240762,-430.0,0.00019449,2]
[363296985,1748662240771,-430.0,0.00019449,2]
[363296987,1748662240780,-569.8,0.00019511,2]
[363296989,1748662240789,-430.0,0.00019722,2]
[363296991,1748662240798,-277.70935208,0.00019722,2]
[363296993,1748662240807,-430.0,0.00019722,2]
[363296995,1748662240816,-430.0,0.00019722,2]
[363296997,1748662240826,-420.0,0.00019722,2]
[363296999,1748662240835,-430.0,0.00019722,2]
[363297001,1748662240843,-430.0,0.00019722,2]
[363297003,1748662240853,-430.0,0.00019723,2]
[363297005,1748662240862,-430.0,0.00019723,2]
[363297007,1748662240871,-569.8,0.00019785,2]
[363297009,1748662240880,-278.0,0.00019944,2]
[363297011,1748662240889,-1000.0,0.00019964,2]
[363297013,1748662240898,-482.866,0.00019964,2]
[363297015,1748662240907,-430.0,0.00019996,2]
[363297017,1748662240916,-430.0,0.00019996,2]
[363297019,1748662240925,-430.0,0.00019996,2]
[363297021,1748662240935,-430.0,0.00019996,2]
[363297023,1748662240944,-430.0,0.00019996,2]
[363297025,1748662240954,-430.0,0.00019997,2]
[363297027,1748662240967,-343.2137139,0.00019997,2]
[363297029,1748662240976,-1197.04769163,0.0002,2]
[363297031,1748662240985,-221.43926187,0.0002,2]
[363297034,1748662240996,-155.0494955,0.0002,20]
[363297036,1748662241005,-500.37990829,0.0002,2]
[363297038,1748662241014,-207.4,0.00020022,2]
[363297040,1748662241023,-3788.94353733,0.00020022,2]
[363297045,1748662241064,-788.59949706,0.00020022,2]
[363297233,1748662243050,-422.45696561,0.00020022,2]
[363297235,1748662243060,-926.89774404,0.00020022,2]
[363297238,1748662243073,-430.0,0.00020022,2]
[363297251,1748662243186,-2268.26870419,0.00020022,2]
[363297253,1748662243196,-569.8,0.00020059,2]
[363297256,1748662243206,-500.0,0.0002014,2]
[363297258,1748662243216,-307.65812999,0.0002014,2]
[363297260,1748662243226,-708.0,0.00020198,2]
[363297262,1748662243235,-2228.0,0.00020198,2]
[363297264,1748662243244,-405.0,0.00020198,2]
[363297266,1748662243253,-962.0,0.00020198,2]
[363297268,1748662243262,-1705.69066988,0.00020215,2]
[363297270,1748662243273,-390.38577529,0.00020215,2]
[363297273,1748662243289,-103.92355483,0.00020215,2]
[363297275,1748662243298,-430.0,0.0002027,2]
[363297277,1748662243307,-160.94669682,0.0002027,2]
[363297279,1748662243317,-430.0,0.0002027,2]
[363297281,1748662243326,-430.0,0.0002027,2]
[363297283,1748662243336,-36.92974836,0.0002027,2]
[363297285,1748662243347,-393.07025164,0.0002027,2]
[363297287,1748662243356,-430.0,0.00020271,2]
[363297289,1748662243366,-192.0318378,0.00020301,2]
[363297291,1748662243375,-158.368211,0.00020301,2]
[363297293,1748662243385,-153.0,0.00020329,2]
[363297295,1748662243395,-569.8,0.00020333,2]
[363297297,1748662243405,-800.0,0.00020356,2]
[363297299,1748662243415,-430.0,0.00020544,2]
[363297301,1748662243425,-430.0,0.00020544,2]
[363297303,1748662243435,-430.0,0.00020544,2]
[363297305,1748662243451,-430.0,0.00020544,2]
[363297308,1748662243474,-430.0,0.00020545,2]
[363297310,1748662243484,-5000.0,0.0002057,2]
[363297312,1748662243493,-569.8,0.00020607,2]
[363297314,1748662243502,-160.0,0.00020669,3]
[363297316,1748662243511,-500.0,0.00020759,2]
[363297318,1748662243521,-500.0,0.00020786,2]
[363297320,1748662243531,-500.0,0.00020814,2]
[363297322,1748662243541,-430.0,0.00020818,2]
[363297324,1748662243550,-430.0,0.00020818,2]
[363297326,1748662243559,-430.0,0.00020818,2]
[363297328,1748662243568,-430.0,0.00020818,2]
[363297330,1748662243578,-430.0,0.00020819,2]
[363297332,1748662243587,-500.0,0.00020841,2]
[363297334,1748662243597,-500.0,0.00020869,2]
[363297336,1748662243606,-569.8,0.00020881,2]
[363297338,1748662243615,-500.0,0.00020896,2]
[363297340,1748662243625,-500.0,0.00020923,2]
[363297342,1748662243634,-346.0,0.00020951,2]
[363297344,1748662243644,-160.746743,0.00020951,2]
[363297346,1748662243653,-247.40128595,0.00021,2]
[363297470,1748662246393,-38148.86729818,0.00021,2]
[363297471,1748662246403,-430.0,0.00021092,2]
[363297473,1748662246413,-430.0,0.00021092,2]
[363297475,1748662246422,-430.0,0.00021092,2]
[363297477,1748662246431,-430.0,0.00021092,2]
[363297478,1748662246440,-430.0,0.00021093,2]
[363297480,1748662246450,-160.0,0.00021105,4]
[363297481,1748662246460,-5000.0,0.00021118,2]
[363297483,1748662246471,-306.0,0.00021123,2]
[363297484,1748662246480,-569.8,0.00021155,2]
[363297485,1748662246490,-308.5920414,0.0002126,2]
[363297486,1748662246500,-170.66524464,0.00021324,2]
[363297487,1748662246509,-430.0,0.00021366,2]
[363297489,1748662246519,-469.196224,0.00021366,2]
[363297491,1748662246529,-430.0,0.00021366,2]
[363297492,1748662246538,-430.0,0.00021366,2]
[363297493,1748662246547,-571.8137455,0.00021367,2]
[363297494,1748662246556,-215.0738,0.00021391,2]
[363297496,1748662246566,-500.0,0.000214,2]
[363297497,1748662246575,-500.0,0.000214,2]
[363297498,1748662246584,-502.69614714,0.000214,2]
[363297499,1748662246595,-569.8,0.00021429,2]
[363297500,1748662246605,-183.75586491,0.00021434,2]
[363297501,1748662246614,-800.0,0.00021452,2]
[363297502,1748662246624,-2023.116795,0.00021461,3]
[363297503,1748662246633,-601.1127309,0.00021488,2]
[363297504,1748662246644,-587.0,0.00021518,2]
[363297505,1748662246654,-608.5082796,0.00021534,2]
[363297506,1748662246663,-160.0,0.00021541,5]
[363297507,1748662246674,-183.75586489,0.00021551,2]
[363297508,1748662246685,-430.0,0.0002164,2]
[363297509,1748662246696,-430.0,0.0002164,2]
[363297510,1748662246705,-430.0,0.0002164,2]
[363297511,1748662246717,-5000.0,0.00021666,2]
[363297512,1748662246727,-183.75586489,0.00021667,2]
[363297513,1748662246737,-1000.0,0.0002168,5]
[363297514,1748662246747,-2000.0,0.000217,2]
[363297515,1748662246757,-1153.25,0.000217,2]
[363297516,1748662246901,-1000.0,0.000217,5]
[363297517,1748662246911,-637.0,0.000217,2]
[363297518,1748662246920,-65996.76526811,0.000217,2]
[363297519,1748662246929,-569.8,0.00021703,2]
[363297520,1748662246938,-206.0,0.0002171,2]
[363297521,1748662246948,-162260.28571146,0.0002178,2]
[363297522,1748662246957,-11684.91779189,0.0002178,2]
[363297523,1748662246968,-183.75586489,0.00021784,2]
[363297524,1748662246977,-4119.0486,0.00021799,15]
[363297525,1748662246987,-1000.0,0.000218,6]
[363297526,1748662246996,-1000.0,0.000218,7]
[363297527,1748662247006,-11837.17,0.000218,2]
[363297528,1748662247015,-500.0,0.0002186,2]
[363297529,1748662247024,-183.75586489,0.000219,2]
[363297530,1748662247036,-842.5625,0.000219,3]
[363297531,1748662247046,-12664.98044988,0.000219,3]
[363297532,1748662247055,-5829.11633934,0.000219,2]
[363297533,1748662247064,-212.77096907,0.000219,3]
[363297534,1748662247074,-12500.0,0.00021908,2]
[363297536,1748662247083,-430.0,0.00021913,2]
[363297537,1748662247092,-430.0,0.00021913,2]
[363297538,1748662247102,-430.0,0.00021914,2]
[363297539,1748662247112,-200.0,0.00021917,2]
[363297540,1748662247122,-12500.0,0.00021917,2]
[363297541,1748662247131,-520.67,0.00021917,2]
[363297542,1748662247141,-500.0,0.00021917,2]
[363297543,1748662247150,-500.0,0.00021917,2]
[363297544,1748662247160,-500.0,0.00021917,2]
[363297546,1748662247169,-500.0,0.00021917,2]
[363297547,1748662247178,-500.0,0.00021917,2]
[363297549,1748662247187,-193.31531108,0.00021917,2]
[363297551,1748662247197,-11148.41716655,0.00021917,2]
[363297553,1748662247207,-153.91291923,0.00021918,2]
[363297554,1748662247218,-6967.30902637,0.00021918,2]
[363297555,1748662247227,-176.4540852,0.00021945,2]
[363297556,1748662247237,-153.0,0.00021945,2]
[363297557,1748662247247,-572.078714,0.00021945,2]
[363297558,1748662247257,-153.0,0.00021945,2]
[363297559,1748662247266,-153.0,0.00021945,2]
[363297560,1748662247276,-176.4540852,0.00021945,2]
[363297561,1748662247285,-176.4540852,0.00021945,2]
[363297562,1748662247295,-153.0,0.00021945,2]
[363297563,1748662247304,-176.4540852,0.00021945,2]
[363297564,1748662247314,-153.0,0.00021945,2]
[363297565,1748662247323,-176.0317247,0.00021945,2]
[363297566,1748662247333,-153.0,0.00021945,2]
[363297567,1748662247343,-238.2628738,0.00021945,2]
[363297568,1748662247353,-470.411126,0.00021973,2]
[363297569,1748662247362,-194.91426386,0.00021973,2]
[363297570,1748662247373,-500.0,0.00021973,2]
[363297571,1748662247384,-500.0,0.00021973,2]
[363297572,1748662247394,-500.83944222,0.00021973,2]
[363297573,1748662247404,-500.0,0.00021973,2]
[363297574,1748662247413,-402.71138246,0.00021973,2]
[363297575,1748662247422,-500.0,0.00021973,2]
[363297576,1748662247431,-500.0,0.00021973,2]
[363297577,1748662247442,-500.0,0.00021973,2]
[363297578,1748662247452,-500.0,0.00021973,2]
[363297579,1748662247462,-500.0,0.00021973,2]
[363297580,1748662247471,-500.0,0.00021973,2]
[363297581,1748662247481,-500.0,0.00021973,2]
[363297582,1748662247490,-500.0,0.00021973,2]
[363297583,1748662247500,-503.57216735,0.00021973,2]
[363297584,1748662247510,-500.0,0.00021973,2]
[363297585,1748662247520,-500.0,0.00021973,2]
[363297586,1748662247530,-500.0,0.00021973,2]
[363297587,1748662247539,-500.0,0.00021973,2]
[363297588,1748662247549,-271.68240806,0.00021973,2]
[363297589,1748662247558,-501.5856008,0.00021973,2]
[363297590,1748662247567,-600.0,0.00021973,2]
[363297591,1748662247577,-500.0,0.00021973,2]
[363297592,1748662247586,-500.0,0.00021973,2]
[363297593,1748662247596,-500.0,0.00021973,2]
[363297594,1748662247605,-500.0,0.00021973,2]
[363297595,1748662247614,-500.0,0.00021973,2]
[363297596,1748662247623,-160.0,0.00021977,6]
[363297597,1748662247633,-160.0,0.00021977,5]
[363297598,1748662247642,-569.8,0.00021977,2]
[363297599,1748662247651,-160.0,0.00021999,2]
[363297600,1748662247660,-57726.30131556,0.00022,3]
[363297601,1748662247669,-147853.92011993,0.00022,2]
[363297602,1748662247682,-8608.49521416,0.00022,2]
[363297603,1748662247693,-34784.14772518,0.00022,2]
[363297604,1748662248404,-4070.9836776,0.00022,2]
[363297606,1748662359086,-430.0,0.00016983,2]
[363297607,1748662359109,-430.0,0.00017257,2]
[363297608,1748662359133,-430.0,0.0001753,2]
[363297609,1748662359156,-430.0,0.00017531,2]
[363297610,1748662359180,-430.0,0.00017804,2]